bitfinex/quotes_ETHUSD_20250217
["timestamp","ask_amount","ask_price","bid_price","bid_amount"]
[1739787440473,3.61286,2767.9,2767.3,0.7645]
[1739787440930,3.61358,2767.4,2766.6,3.61441]
[1739787441249,0.930551,2768.1,2766.5,0.7973]
[1739787441450,3.61325,2767.6,2766.7,3.61433]
[1739787441655,3.61362,2767.4,2766.7,3.61433]
[1739787442278,0.3025,2768.0,2767.3,3.61362]
[1739787442279,3.61281,2768.0,2767.3,3.61362]
[1739787442645,0.8643,2768.1,2767.4,3.61349]
[1739787442847,0.005,2768.4,2767.7,3.61301]
[1739787443067,0.005,2768.4,2767.9,4.38724]
[1739787443270,0.005,2768.4,2767.9,0.7744]
[1739787443678,0.005,2768.4,2767.9,4.38716]
[1739787443889,0.005,2768.4,2767.9,0.7744]
[1739787444048,0.005,2768.4,2767.9,4.38715]
[1739787444378,0.005,2768.4,2767.9,0.7744]
[1739787444581,0.005,2768.4,2767.7,7.22607]
[1739787444781,0.005,2768.4,2767.9,3.61276]
[1739787444956,0.005,2768.4,2768.0,3.61269]
[1739787445148,3.6172,2768.4,2767.7,3.61308]
[1739787445349,0.005,2768.4,2767.8,3.61288]
[1739787445584,0.005,2768.4,2768.0,3.61263]
[1739787446084,0.005,2768.4,2767.8,3.61287]
[1739787446285,0.005,2768.4,2767.6,0.8183]
[1739787446610,3.61727,2768.4,2767.7,3.61308]
[1739787446965,3.61727,2768.4,2767.6,4.43142]
[1739787447173,3.61727,2768.4,2767.2,3.61372]
[1739787447174,3.61281,2768.0,2767.2,3.61372]
[1739787447514,0.5693,2768.1,2767.4,3.61337]
[1739787447797,3.91224,2768.4,2767.6,3.61323]
[1739787448090,0.3,2768.4,2767.8,3.61288]
[1739787448295,0.3,2768.4,2767.5,0.55]
[1739787448296,0.005,2768.4,2768.1,3.61257]
[1739787448660,0.005,2768.4,2768.0,0.55]
[1739787449098,0.005,2768.4,2768.3,3.61232]
[1739787449299,0.005,2768.4,2768.3,4.523552]
[1739787449595,2.6e-06,2768.5,2768.4,7.93599]
[1739787450172,4.17878,2770.5,2768.9,0.7635]
[1739787450398,0.296,2770.7,2769.9,3.61014]
[1739787450604,3.90524,2770.7,2770.0,3.61009]
[1739787450764,3.60938,2770.6,2769.8,4.37384]
[1739787451165,0.296,2770.7,2769.8,4.37384]
[1739787451166,3.60921,2770.7,2769.8,0.7635]
[1739787451404,3.60936,2770.6,2769.8,0.7635]
[1739787451700,3.60949,2770.5,2769.8,4.37384]
[1739787452207,3.60932,2770.6,2769.8,4.37384]
[1739787452732,3.60946,2770.5,2769.8,0.7635]
[1739787453209,4.057139,2770.7,2769.8,0.7635]
[1739787453505,3.60973,2770.3,2769.8,0.7635]
[1739787453810,0.5743,2770.2,2769.1,0.7575]
[1739787454105,3.61011,2770.0,2769.3,3.61093]
[1739787454308,3.61011,2770.0,2769.2,4.16102]
[1739787454508,0.5743,2770.2,2769.2,0.55]
[1739787454711,3.61028,2769.9,2769.1,4.36867]
[1739787455006,3.61072,2769.6,2769.1,0.7575]
[1739787455205,3.61092,2769.4,2768.8,0.7698]
[1739787456071,0.015,2770.1,2768.8,0.7698]
[1739787456273,0.1499726,2771.3,2771.2,3.60854]
[1739787456621,0.5743,2772.2,2771.2,3.60854]
[1739787456622,0.004,2772.4,2771.5,0.55]
[1739787456914,0.004,2772.4,2772.3,8.21374586]
[1739787457712,0.004,2772.4,2772.3,11.21374586]
[1739787457912,0.004,2772.4,2772.3,11.76374586]
[1739787458310,0.005,2773.4,2773.2,0.7873]
[1739787458835,3.60581,2773.3,2772.2,4.60663586]
[1739787459042,0.0075,2773.3,2771.5,0.7754]
[1739787459335,0.015,2772.8,2771.5,0.7754]
[1739787459638,0.5933,2772.4,2771.4,1.79518638]
[1739787459870,0.5858,2772.4,2771.4,1.79518638]
[1739787460028,0.8863,2772.4,2771.4,1.79518638]
[1739787460234,3.60713,2772.3,2771.4,1.79518638]
[1739787460555,3.60738,2772.1,2771.4,1.79518638]
[1739787460875,0.360738,2772.0,2771.4,1.79518638]
[1739787461084,3.60726,2772.2,2771.4,1.79518638]
[1739787461291,3.60686,2772.5,2771.5,4.15812]
[1739787461464,3.968745,2772.7,2771.7,0.55]
[1739787461782,3.70534,2773.7,2772.5,4.15681]
[1739787461783,3.61074,2773.4,2772.5,4.15681]
[1739787461944,0.005,2773.4,2772.0,8.21412586]
[1739787462124,3.60633,2772.9,2772.1,6.6073]
[1739787462325,0.360633,2772.9,2772.0,4.60663586]
[1739787462526,0.308,2773.0,2771.8,0.8226]
[1739787462786,3.6068,2772.6,2771.8,0.8226]
[1739787463060,3.60788,2771.8,2771.4,1.79518638]
[1739787463261,3.60807,2771.6,2771.4,1.79518638]
[1739787463488,3.60815,2771.5,2770.8,5.41323586]
[1739787463690,0.5783,2771.4,2770.3,0.8066]
[1739787463906,3.0,2772.1,2770.3,0.8066]
[1739787463907,4.18594,2771.9,2770.4,4.60663586]
[1739787464113,3.60851,2771.3,2770.4,8.21618586]
[1739787464260,0.8873,2771.9,2770.3,0.8066]
[1739787464456,0.8873,2771.9,2770.5,3.60944]
[1739787464655,3.60851,2771.3,2770.5,3.60944]
[1739787464913,0.360851,2771.3,2770.5,3.60944]
[1739787465117,3.60856,2771.2,2770.6,0.55]
[1739787465271,3.60848,2771.3,2770.6,0.55]
[1739787465474,3.60848,2771.3,2770.5,0.55]
[1739787465817,3.60849,2771.3,2770.5,0.55]
[1739787465962,3.60849,2771.3,2770.5,4.15941]
[1739787466312,0.308,2772.1,2771.0,4.60663586]
[1739787466606,3.6075,2772.0,2771.1,4.15857]
[1739787466809,3.6075,2772.0,2771.2,3.6085]
[1739787467014,0.308,2772.4,2771.1,0.55]
[1739787467197,3.60736,2772.2,2771.1,4.19468924]
[1739787467357,3.60738,2772.1,2771.3,3.60831]
[1739787467562,3.60711,2772.3,2771.6,3.608]
[1739787467867,0.308,2772.4,2771.2,4.15849]
[1739787468211,3.60737,2772.1,2770.6,11.21594586]
[1739787468360,3.60831,2771.4,2770.6,11.21594586]
[1739787468560,3.60828,2771.4,2770.6,4.60663586]
[1739787468822,3.60844,2771.3,2770.6,4.60663586]
[1739787469021,3.60828,2771.4,2770.7,4.36536]
[1739787469315,3.60855,2771.2,2770.7,0.7562]
[1739787469802,3.60528,2771.4,2770.7,0.7562]
[1739787470013,0.357528,2771.4,2770.7,0.7562]
[1739787470308,0.357528,2771.4,2770.4,0.55]
[1739787470309,3.60876,2771.1,2770.4,6.60957]
[1739787470521,3.60883,2771.0,2770.4,3.0]
[1739787470863,3.60648,2770.5,2769.7,3.61047]
[1739787471075,3.60648,2770.5,2769.8,4.42795]
[1739787471340,0.0075,2771.4,2770.2,3.60975]
[1739787471624,3.6061,2770.8,2770.2,3.60975]
[1739787471836,3.60895,2770.9,2770.0,3.61007]
[1739787471837,3.6092,2770.7,2770.0,3.61007]
[1739787471976,3.6092,2770.7,2769.8,4.42791]
[1739787471977,7.2175,2771.1,2770.3,3.60962]
[1739787472182,3.60908,2770.8,2770.0,8.21664586]
[1739787472387,3.60608,2770.8,2770.0,8.21664586]
[1739787472618,3.60608,2770.8,2770.1,3.60986]
[1739787472986,3.6088,2771.0,2770.0,9.12007045]
[1739787472987,3.6088,2771.0,2770.2,0.55]
[1739787473227,3.60594,2770.9,2770.2,4.15975]
[1739787473443,3.60893,2770.9,2770.2,4.15975]
[1739787473982,3.60593,2770.9,2770.2,4.15975]
[1739787474187,3.60921,2770.7,2770.0,9.12007045]
[1739787474389,3.60593,2770.9,2770.2,3.60983]
[1739787474733,3.60843,2771.3,2770.5,0.55]
[1739787474887,3.60543,2771.3,2770.6,3.60931]
[1739787475087,7.21395,2771.3,2770.6,3.60931]
[1739787475288,3.60543,2771.3,2770.6,3.60931]
[1739787475492,3.60866,2771.2,2770.5,0.55]
[1739787475692,3.60868,2771.1,2770.5,0.55]
[1739787476313,3.60543,2771.3,2770.6,4.43554]
[1739787476513,3.60867,2771.1,2770.6,0.8263]
[1739787476717,3.60911,2770.8,2770.2,4.43608]
[1739787476915,3.60911,2770.8,2770.2,0.8263]
[1739787477090,3.60911,2770.8,2770.2,4.43614]
[1739787477425,3.60886,2771.0,2770.2,5.56663409]
[1739787477629,3.60886,2771.0,2770.4,3.60956]
[1739787477926,7.21777,2771.0,2770.3,3.60969]
[1739787478124,7.21777,2771.0,2770.4,3.60951]
[1739787478125,3.60886,2771.0,2770.4,3.60951]
[1739787478300,3.60901,2770.9,2770.2,5.56666409]
[1739787478524,3.60901,2770.9,2770.3,3.60964]
[1739787478852,3.60886,2771.0,2770.4,3.60958]
[1739787479056,0.306,2771.4,2770.4,3.60947]
[1739787479274,3.6092,2770.7,2770.0,3.61008]
[1739787479571,3.60875,2771.1,2770.2,3.60976]
[1739787479719,3.60888,2771.0,2770.4,3.60958]
[1739787479924,3.60875,2771.1,2770.4,3.60958]
[1739787480272,3.60901,2770.9,2770.2,3.60976]
[1739787480764,3.60913,2770.8,2770.2,3.60976]
[1739787481068,3.999882,2771.3,2770.0,3.61002]
[1739787481069,3.60922,2770.7,2770.0,3.61002]
[1739787481279,3.60922,2770.7,2770.1,3.60997]
[1739787481568,3.60933,2770.6,2770.0,3.61002]
[1739787481717,3.60992,2770.2,2769.7,0.7945]
[1739787482049,0.1783,2770.8,2769.4,4.60663586]
[1739787482352,3.60926,2770.7,2770.1,4.4326]
[1739787482558,3.60914,2770.8,2770.1,4.43257]
[1739787482752,3.60936,2770.6,2770.1,0.8227]
[1739787482956,3.60982,2770.3,2769.7,4.43531]
[1739787483152,3.60998,2770.1,2769.7,0.8249]
[1739787483652,3.61019,2770.0,2769.5,0.25652225]
[1739787483851,3.60958,2770.4,2769.5,0.25652225]
[1739787483852,3.61062,2769.6,2769.5,0.25652225]
[1739787484227,3.61114,2769.3,2768.7,0.8137]
[1739787484427,3.61118,2769.2,2768.7,0.8137]
[1739787484631,3.61118,2769.2,2768.7,1.256255]
[1739787484832,3.61114,2769.3,2768.7,4.867935]
[1739787485058,3.61114,2769.3,2768.7,4.868015]
[1739787486130,7.22228,2769.3,2768.7,0.442555]
[1739787486335,3.61118,2769.2,2768.7,0.442555]
[1739787486533,3.61129,2769.1,2768.6,3.61189]
[1739787486737,3.61114,2769.3,2768.6,3.61184]
[1739787486945,3.78883,2769.7,2768.5,0.55]
[1739787487144,0.304,2769.6,2769.0,3.61132]
[1739787487472,3.61077,2769.5,2769.0,3.61132]
[1739787487669,3.91428,2769.9,2769.2,3.6111]
[1739787487967,3.91428,2769.9,2769.0,0.51100711]
[1739787487968,3.61065,2769.6,2769.0,0.51100711]
[1739787488169,0.304,2769.9,2768.6,3.61186]
[1739787488470,0.304,2769.9,2768.4,1.89395622]
[1739787488471,7.22294,2769.0,2768.4,1.89395622]
[1739787488630,7.22294,2769.0,2768.4,5.50605622]
[1739787488631,3.61142,2769.0,2768.4,5.50605622]
[1739787488972,3.61117,2769.2,2768.4,5.50605622]
[1739787488973,3.61117,2769.2,2768.7,3.6118]
[1739787489145,3.61117,2769.2,2768.6,3.61188]
[1739787489346,3.61117,2769.2,2768.4,1.89395622]
[1739787489347,3.61176,2768.8,2768.4,1.89395622]
[1739787489547,3.6122,2768.4,2767.9,3.61273]
[1739787489861,3.91543,2769.0,2768.4,3.61211]
[1739787490037,0.304,2769.0,2768.4,3.61211]
[1739787490242,3.6111,2769.3,2768.7,3.61172]
[1739787490464,3.6111,2769.3,2768.6,3.61192]
[1739787490647,3.61148,2769.0,2768.5,0.8064]
[1739787491374,3.61116,2769.2,2768.6,3.61191]
[1739787491571,4.09228,2769.4,2768.7,3.6117]
[1739787491732,3.61098,2769.4,2768.8,3.0]
[1739787492069,0.303,2769.9,2769.0,3.61136]
[1739787492298,0.303,2769.9,2768.8,3.61162]
[1739787492494,3.61089,2769.4,2768.8,3.61158]
[1739787492988,8.1195,2770.3,2768.7,3.44181]
[1739787492989,3.78882,2769.7,2768.7,3.44181]
[1739787493134,3.61127,2769.2,2768.7,0.44181]
[1739787493451,3.61104,2769.3,2768.7,4.05351]
[1739787493649,3.61096,2769.4,2768.7,0.44181]
[1739787493899,0.303,2769.6,2768.6,3.61184]
[1739787493900,3.6112,2769.2,2768.6,3.61184]
[1739787494193,3.61108,2769.3,2768.7,3.61177]
[1739787494490,3.61126,2769.2,2768.6,3.61184]
[1739787494687,3.61139,2769.1,2768.5,0.8064]
[1739787494843,3.61154,2768.9,2768.5,0.8064]
[1739787495244,3.61176,2768.8,2768.2,3.61235]
[1739787495492,0.015,2769.5,2768.4,3.61208]
[1739787495797,3.61164,2768.9,2768.4,3.61208]
[1739787496298,3.61188,2768.7,2768.2,0.436365]
[1739787496441,0.1783,2768.9,2767.8,3.6129]
[1739787496638,3.61201,2768.6,2768.0,3.61269]
[1739787496895,3.61201,2768.6,2768.1,3.61256]
[1739787497424,3.61201,2768.6,2767.9,3.0]
[1739787497541,0.302,2768.7,2767.6,4.3013]
[1739787497746,0.302,2768.7,2768.0,3.61261]
[1739787497747,7.22406,2768.6,2768.0,3.61261]
[1739787497998,3.61221,2768.4,2767.9,3.61281]
[1739787498174,0.302,2768.7,2767.8,3.61293]
[1739787498342,3.61268,2768.1,2767.6,0.7513]
[1739787498546,0.302,2768.7,2767.6,0.7513]
[1739787498547,3.61241,2768.3,2767.7,3.613]
[1739787498774,0.302,2768.7,2767.6,0.7513]
[1739787498982,0.301,2768.6,2768.1,3.61254]
[1739787499187,3.61189,2768.7,2768.1,3.61254]
[1739787499443,3.78993,2768.9,2767.9,0.55]
[1739787499640,0.301,2768.8,2768.0,4.60663586]
[1739787499841,0.301,2768.8,2768.2,3.61233]
[1739787500161,3.61134,2769.1,2768.6,3.61192]
[1739787500340,3.78939,2769.3,2768.7,3.61178]
[1739787500542,3.78939,2769.3,2768.2,0.7914]
[1739787500543,3.6108,2769.5,2769.0,3.61137]
[1739787500744,3.61103,2769.3,2768.7,3.6117]
[1739787501244,3.61116,2769.2,2768.6,3.61192]
[1739787501411,3.61103,2769.3,2768.7,3.6117]
[1739787501555,3.61103,2769.3,2768.4,4.60663586]
[1739787501912,7.52265,2769.5,2768.8,3.61165]
[1739787502210,0.8080582,2769.5,2768.4,4.60663586]
[1739787502354,3.9115,2769.7,2769.0,3.61132]
[1739787502560,0.301,2769.7,2768.8,3.6116]
[1739787502918,3.61113,2769.3,2768.6,7.2237]
[1739787503098,3.61087,2769.5,2768.8,3.61157]
[1739787503405,0.301,2769.7,2768.8,3.61157]
[1739787503717,3.61064,2769.6,2769.0,3.61139]
[1739787503860,3.61064,2769.6,2769.0,3.61132]
[1739787504061,3.61064,2769.6,2768.9,3.61152]
[1739787504410,3.61084,2769.5,2769.0,3.61141]
[1739787504908,3.61084,2769.5,2768.8,3.61161]
[1739787505073,3.61104,2769.3,2768.8,3.61158]
[1739787505414,3.61084,2769.5,2768.8,3.61158]
[1739787505710,11.72928,2770.3,2769.5,3.61075]
[1739787506004,11.72928,2770.3,2769.6,3.61061]
[1739787506005,3.60985,2770.2,2769.6,3.61061]
[1739787506306,8.5913,2770.3,2769.2,0.7619]
[1739787506512,3.61063,2769.6,2768.8,5.36853586]
[1739787506716,8.2903,2770.3,2769.2,5.15663586]
[1739787506852,3.60968,2770.4,2769.4,0.55]
[1739787507052,3.60978,2770.3,2769.7,3.61043]
[1739787507306,0.721946,2770.2,2769.7,3.61043]
[1739787507513,0.721946,2770.2,2769.6,4.60663586]
[1739787507657,3.60972,2770.3,2769.3,0.7619]
[1739787507858,3.60972,2770.3,2769.4,0.55]
[1739787508188,3.60972,2770.3,2769.7,3.61042]
[1739787508394,3.60984,2770.2,2769.7,3.61042]
[1739787508573,3.61006,2770.1,2769.5,3.61071]
[1739787508814,3.61013,2770.0,2769.5,3.61071]
[1739787509089,3.61013,2770.0,2769.5,3.60692995]
[1739787509275,0.739786,2770.2,2769.3,0.7619]
[1739787509474,3.60987,2770.2,2769.6,3.61057]
[1739787509795,3.60959,2770.4,2769.6,3.61055]
[1739787509978,3.970316,2770.6,2769.9,3.61017]
[1739787509979,0.360936,2770.6,2769.9,3.61017]
[1739787510179,0.1783,2770.7,2769.7,3.61041]
[1739787510180,3.60984,2770.3,2769.7,3.61041]
[1739787510372,3.61004,2770.1,2769.5,3.61067]
[1739787510598,3.61004,2770.1,2769.6,3.61061]
[1739787510799,0.4803,2770.7,2769.7,0.55]
[1739787510800,0.1783,2770.7,2769.7,0.55]
[1739787510998,0.302,2771.2,2770.7,3.60911]
[1739787511201,7.51925,2771.2,2770.5,8.21599586]
[1739787511397,3.60861,2771.2,2770.5,11.82535586]
[1739787511713,11.72303,2771.6,2771.0,3.60877]
[1739787511914,2.26177991,2771.5,2771.0,3.60877]
[1739787512058,0.1783,2771.8,2771.0,3.60877]
[1739787512059,3.60777,2771.8,2771.0,3.6088]
[1739787512265,3.60777,2771.8,2771.2,3.60843]
[1739787512462,0.360777,2771.7,2771.4,3.60824]
[1739787512661,0.360777,2771.7,2770.9,4.60663586]
[1739787512662,3.60713,2772.3,2771.6,3.60794]
[1739787512858,0.1783,2772.4,2771.7,3.60777]
[1739787513107,3.60677,2772.6,2772.0,3.60749]
[1739787513324,0.1783,2772.7,2771.7,9.04178586]
[1739787513325,0.391077,2772.5,2772.1,3.60737]
[1739787513459,3.60646,2772.8,2772.1,3.60737]
[1739787513665,11.72023,2773.0,2772.1,3.60737]
[1739787513666,11.72023,2773.0,2772.3,3.60709]
[1739787514411,3.60659,2772.7,2772.1,3.60737]
[1739787514560,8.114,2773.0,2772.1,4.60663586]
[1739787514763,0.1783,2773.1,2772.1,4.60663586]
[1739787514764,0.005,2773.4,2772.6,3.60661]
[1739787514967,0.005,2773.4,2772.8,3.60643]
[1739787515162,0.005,2773.4,2772.6,4.15672]
[1739787515163,3.61078,2773.4,2772.6,4.15672]
[1739787515360,3.61078,2773.4,2772.7,3.60659]
[1739787515632,3.6061,2773.1,2772.5,0.7917]
[1739787515919,3.966898,2773.3,2772.5,4.39852]
[1739787516079,0.361078,2773.3,2772.6,3.60668]
[1739787516363,0.361078,2773.3,2772.5,0.7917]
[1739787516364,0.005,2773.4,2772.9,3.60631]
[1739787516489,0.005,2773.4,2773.0,3.60616]
[1739787516894,0.005,2773.4,2773.0,3.60619]
[1739787517189,0.005,2773.4,2772.8,3.60635]
[1739787517375,3.61068,2773.4,2772.7,3.60659]
[1739787517576,3.60603,2773.2,2772.5,9.00515586]
[1739787517975,3.60603,2773.2,2772.6,3.6067]
[1739787518170,3.60603,2773.2,2772.5,9.00515586]
[1739787518171,3.966908,2773.3,2772.5,5.39833586]
[1739787518374,3.60609,2773.1,2772.5,5.39833586]
[1739787518606,0.1783,2773.2,2772.1,5.43803586]
[1739787518788,3.6061,2773.1,2772.2,3.60722]
[1739787518986,0.37844,2773.0,2772.3,0.55]
[1739787519218,3.60636,2772.9,2772.3,0.55]
[1739787519429,3.60661,2772.7,2772.1,9.04540586]
[1739787519719,3.60661,2772.7,2772.1,5.43803586]
[1739787519907,3.60661,2772.7,2772.1,9.04539586]
[1739787520102,4.327907,2772.7,2772.1,9.04539586]
[1739787520628,0.721297,2772.7,2772.1,5.43803586]
[1739787520927,3.60659,2772.7,2772.1,5.43803586]
[1739787521131,0.1783,2773.2,2772.3,3.6071]
[1739787521132,3.60627,2773.0,2772.3,3.6071]
[1739787521611,3.60672,2772.6,2771.6,0.8233]
[1739787521811,3.60672,2772.6,2770.5,0.305]
[1739787521812,3.60791,2771.7,2771.2,0.8233]
[1739787522528,3.60791,2771.7,2770.8,3.609]
[1739787522529,3.60791,2771.7,2770.9,0.7855]
[1739787522676,0.1783,2771.9,2770.9,0.7855]
[1739787522677,3.60823,2771.5,2770.9,0.7855]
[1739787522878,4.32986,2771.5,2770.9,0.7855]
[1739787523078,4.32986,2771.5,2770.4,0.7855]
[1739787523079,3.60887,2771.0,2770.4,0.7855]
[1739787523325,3.60894,2770.9,2770.4,0.7855]
[1739787523622,3.6087,2771.1,2770.2,3.60984]
[1739787523870,3.78689,2771.2,2770.4,3.60956]
[1739787523871,4.09289,2771.2,2770.4,3.60956]
[1739787524014,3.60881,2771.0,2770.4,3.60956]
[1739787524386,3.60906,2770.9,2770.2,3.60984]
[1739787524583,3.60881,2771.0,2770.4,3.60949]
[1739787525130,3.60894,2770.9,2770.2,3.60974]
[1739787525335,4.4167479,2771.0,2770.3,3.60969]
[1739787526034,3.91359,2771.2,2770.5,3.60937]
[1739787526375,3.60859,2771.2,2770.6,3.60931]
[1739787526583,3.60844,2771.3,2770.7,3.60919]
[1739787527108,3.60863,2771.2,2770.6,0.55]
[1739787527327,3.60871,2771.1,2770.4,0.55]
[1739787527629,3.60871,2771.1,2770.6,0.55]
[1739787527934,3.60889,2771.0,2770.3,3.60963]
[1739787528225,3.6086,2771.2,2770.5,3.60943]
[1739787528393,3.6086,2771.2,2770.5,7.21879]
[1739787528595,7.21724,2771.2,2770.5,3.60936]
[1739787528795,3.6086,2771.2,2770.5,3.60936]
[1739787529015,3.60896,2770.9,2770.3,3.60967]
[1739787529201,3.6089,2771.0,2770.3,3.60962]
[1739787529407,4.00002,2771.2,2770.5,3.60943]
[1739787529624,0.39136,2771.2,2770.5,3.60943]
[1739787529930,0.304,2771.4,2770.5,3.60943]
[1739787529931,0.304,2771.4,2770.6,0.55]
[1739787530136,3.60877,2771.1,2770.5,4.60663586]
[1739787530337,3.60904,2770.9,2770.1,11.82642586]
[1739787530632,3.91232,2771.4,2770.1,11.82642586]
[1739787530633,0.304,2771.4,2770.4,3.60949]
[1739787530830,0.304,2771.4,2770.3,0.55]
[1739787530831,3.6089,2771.0,2770.3,3.60963]
[1739787531032,3.609,2770.9,2770.3,3.60963]
[1739787531185,3.6089,2771.0,2770.4,3.60954]
[1739787531588,3.6089,2771.0,2770.1,4.60663586]
[1739787531589,3.60955,2770.5,2770.1,4.60663586]
[1739787531926,3.60921,2770.7,2770.1,4.60663586]
[1739787532102,3.60934,2770.6,2770.1,8.21659586]
[1739787532301,0.1783,2770.9,2769.8,1.54889807]
[1739787532502,3.61058,2769.7,2769.3,4.60663586]
[1739787532718,3.60932,2770.6,2768.9,0.7909]
[1739787532719,3.61097,2769.4,2768.9,0.7909]
[1739787532940,0.1783,2770.1,2768.8,0.59185359]
[1739787532941,3.78831,2770.1,2768.8,0.59185359]
[1739787533085,3.61084,2769.5,2768.8,3.61156]
[1739787533291,3.61055,2769.7,2769.1,3.61119]
[1739787533620,0.305,2769.9,2768.9,3.61149]
[1739787533788,3.61103,2769.3,2768.7,3.61171]
[1739787533985,3.61098,2769.4,2768.6,4.60663586]
[1739787534234,3.61098,2769.4,2768.6,8.21850586]
[1739787534440,3.61128,2769.1,2768.6,8.21847586]
[1739787534583,3.61118,2769.2,2768.5,0.8059]
[1739787534789,0.378948,2769.2,2768.1,0.51566359]
[1739787535018,3.61117,2769.2,2768.5,3.61205]
[1739787535288,3.91617,2769.2,2768.6,3.61186]
[1739787535407,3.61117,2769.2,2768.6,3.61186]
[1739787535807,3.91591,2769.4,2768.6,3.61186]
[1739787535808,3.61051,2769.7,2769.1,3.61126]
[1739787536501,3.61074,2769.6,2768.9,3.61143]
[1739787536907,3.61107,2769.3,2768.7,4.4177]
[1739787537147,3.61075,2769.6,2768.8,3.61157]
[1739787537437,3.61089,2769.4,2768.7,4.41769]
[1739787537744,3.61111,2769.3,2768.7,4.41769]
[1739787537945,3.61067,2769.6,2768.7,0.8059]
[1739787538244,3.61097,2769.4,2768.8,3.61155]
[1739787538601,3.61096,2769.4,2768.8,3.61155]
[1739787539063,3.61096,2769.4,2768.7,0.8059]
[1739787539261,4.3616221,2769.8,2769.1,3.61127]
[1739787539463,0.43616221,2769.7,2768.7,3.8059]
[1739787539661,3.61061,2769.7,2768.9,3.61143]
[1739787539861,0.304,2769.8,2768.8,3.61154]
[1739787540168,3.61059,2769.7,2768.9,3.61154]
[1739787540363,0.304,2769.8,2768.7,4.41763]
[1739787540566,3.61139,2769.1,2768.4,6.61211]
[1739787540769,3.972529,2769.1,2768.4,6.61211]
[1739787540978,3.972529,2769.1,2768.3,0.7905]
[1739787541136,3.61157,2768.9,2768.3,3.7905]
[1739787541477,0.304,2768.9,2767.7,3.61301]
[1739787541772,3.61213,2768.5,2767.9,3.61284]
[1739787542070,3.61176,2768.8,2767.9,3.61284]
[1739787542270,0.391576,2768.8,2768.3,3.61219]
[1739787542469,3.78945,2769.2,2768.4,0.03612065]
[1739787542675,0.1783,2769.2,2768.7,3.61176]
[1739787543033,3.78947,2769.2,2768.5,3.612]
[1739787543447,3.61142,2769.0,2768.3,3.61228]
[1739787543771,3.61142,2769.0,2768.4,3.61212]
[1739787543982,7.22295,2769.0,2768.4,3.61212]
[1739787544138,0.740093,2769.0,2768.1,3.6125]
[1739787544338,3.61207,2768.5,2768.0,0.8161]
[1739787544541,3.61221,2768.4,2767.9,3.61277]
[1739787544758,3.61207,2768.5,2767.9,3.61277]
[1739787545071,3.61186,2768.7,2767.9,3.61277]
[1739787545246,0.4351583,2768.9,2768.2,3.61244]
[1739787545446,0.4351583,2768.9,2767.7,4.3436]
[1739787545447,3.61181,2768.7,2768.0,3.6127]
[1739787545763,3.61222,2768.4,2767.8,3.61287]
[1739787545959,0.1783,2768.4,2767.4,8.98955586]
[1739787546161,3.61256,2768.2,2767.4,8.98955586]
[1739787546365,3.61259,2768.1,2767.6,3.61315]
[1739787546577,3.61275,2768.0,2767.4,8.98955586]
[1739787546771,0.572915,2768.1,2767.1,3.61388]
[1739787546988,3.61344,2767.5,2767.0,0.8061]
[1739787547301,3.61342,2767.5,2767.0,0.8061]
[1739787547451,3.79147,2767.7,2766.8,0.8061]
[1739787547802,3.61292,2767.9,2767.2,3.61366]
[1739787548092,3.61292,2767.9,2767.2,3.61368]
[1739787548251,3.61305,2767.8,2767.2,3.61368]
[1739787548646,3.61324,2767.6,2767.0,3.61398]
[1739787548844,3.61324,2767.6,2766.8,5.32306559]
[1739787549079,3.6135,2767.4,2766.8,5.32306559]
[1739787549287,3.61397,2767.1,2766.5,4.4207]
[1739787549496,3.61429,2766.8,2766.3,3.61483]
[1739787549785,3.61413,2767.0,2766.2,3.61505]
[1739787549946,3.61413,2767.0,2766.1,4.42126]
[1739787549947,0.557484,2767.2,2766.1,4.42121]
[1739787550149,3.79212,2767.2,2766.3,3.61488]
[1739787550358,3.61414,2767.0,2766.2,3.61506]
[1739787550985,3.61494,2766.3,2765.9,4.60663586]
[1739787551204,3.61447,2766.7,2765.9,4.60663586]
[1739787551408,3.61437,2766.8,2765.8,4.37607]
[1739787551612,3.975947,2766.7,2766.0,3.61522]
[1739787551763,0.361437,2766.7,2765.9,3.61545]
[1739787551960,3.62145,2767.1,2766.5,3.61464]
[1739787552161,3.61425,2766.9,2766.3,3.61493]
[1739787552384,3.61428,2766.8,2766.6,0.03459328]
[1739787552594,3.61428,2766.8,2766.2,3.61505]
[1739787552804,4.344621,2766.8,2766.7,0.03569263]
[1739787553003,4.337121,2766.8,2766.7,0.03569263]
[1739787553304,4.337121,2766.8,2766.0,3.6152]
[1739787553478,3.61508,2766.2,2765.8,0.7605]
[1739787553687,4.337181,2766.8,2765.7,0.0275]
[1739787553688,3.61491,2766.4,2765.7,0.0275]
[1739787554006,3.61516,2766.2,2765.7,3.64321]
[1739787554244,3.61516,2766.2,2765.7,0.0275]
[1739787554614,0.1783,2766.1,2765.7,0.0275]
[1739787554820,0.539791,2766.3,2765.7,0.0275]
[1739787555015,3.79331,2766.3,2765.7,0.0275]
[1739787555324,3.61535,2766.0,2765.7,0.0275]
[1739787555708,0.0075,2766.2,2765.7,0.0275]
[1739787555908,3.79334,2766.3,2765.7,0.0275]
[1739787556103,3.61515,2766.2,2765.7,0.0275]
[1739787556305,3.61528,2766.1,2765.7,0.0275]
[1739787556505,3.61515,2766.2,2765.7,0.0275]